[Event "Reykjavik Open 2022"]
[Site "Reykjavik"]
[Date "2022.04.07"]
[Round "3.34"]
[White "Bjornsson, Sigurbjorn"]
[Black "Briem, Stephan"]
[Result "1/2-1/2"]
[ECO "C10"]
[WhiteElo "2315"]
[BlackElo "2039"]
[Annotator "TA"]
[PlyCount "96"]
[EventDate "2022.04.06"]
[EventCountry "ISL"]
[SourceTitle "playchess.com"]
[Source "ChessBase"]
[SourceQuality "1"]
[TimeControl "40/5400+30:1800+30"]

{[%evp 45,96,0,0,0,0,0,0,0,0,0,0,0,0,0,0,0,0,0,0,0,0,0,0,0,0,-8,-8,-14,-8,-7,0,0,0,0,0,0,0,0,0,0,0,0,0,-8,-8,-8,-8,-8,0,0,0,-8,0]} 1. e4 {[%emt 0:00:03]} e6 {[%emt 0:00:33]} 2. d4 {[%emt 0:00:22]} d5 {[%emt 0:00:07]} 3. Nc3 {[%emt 0:00:16]} dxe4 {[%emt 0:00:31]} 4. Nxe4 {[%emt 0:00:07]} Nd7 {[%emt 0:00:07]} 5. Nf3 {[%emt 0:00:59]} Ngf6 {[%emt 0:00:24]} 6. Bg5 {[%emt 0:07:02]} h6 {[%emt 0:01:09]} 7. Nxf6+ {[%emt 0:01:15]} Nxf6 {[%emt 0:00:08]} 8. Be3 {[%emt 0:01:56]} Bd6 {[%emt 0:03:12]} 9. Bd3 {[%emt 0:03:29]} b6 {[%emt 0:01:33]} 10. Qe2 {[%emt 0:01:44]} O-O {[%emt 0:00:56]} 11. O-O-O {[%emt 0:02:25]} Bb7 {[%emt 0:00:18]} 12. Kb1 {[%emt 0:01:12]} Nd5 {[%emt 0:05:43]} 13. Bd2 {[%emt 0:03:53]} Nf4 {[%emt 0:01:54]} 14. Bxf4 {[%emt 0:02:17]} Bxf4 {[%emt 0:00:03]} 15. c4 {[%emt 0:14:38]} Qf6 {[%emt 0:06:17]} 16. Be4 {[%emt 0:04:59]} Bxe4+ {[%emt 0:07:12]} 17. Qxe4 {[%emt 0:00:01]} c5 {[%emt 0:11:26]} 18. Rd3 {[%emt 0:04:35]} Rac8 {[%emt 0:11:11]} 19. a3 {[%emt 0:13:16]} Rfd8 {[%emt 0:09:42]} 20. Rhd1 {[%emt 0:01:08]} g6 {[%emt 0:11:46]} 21. h3 {[%emt 0:04:15]} Bd6 {[%emt 0:01:20]} 22. d5 {[%emt 0:17:15]} exd5 {[%emt 0:05:40]} 23. Rxd5 {[%emt 0:00:17]} Bf8 {[%emt 0:00:55]} 24. Qe5 {[%emt 0:01:51]} Bg7 {[%emt 0:01:32]} 25. Qxf6 {[%emt 0:01:05]} Bxf6 {[%emt 0:00:02]} 26. Kc2 {[%emt 0:03:59]} Rxd5 {[%emt 0:03:33]} 27. Rxd5 {[%emt 0:00:10]} Re8 {[%emt 0:00:09]} 28. b3 {[%emt 0:01:02]} Re2+ {[%emt 0:02:30]} 29. Rd2 {[%emt 0:00:11]} Re6 {[%emt 0:01:28]} 30. b4 {[%emt 0:01:41]} a6 {[%emt 0:08:42]} 31. Kb3 {[%emt 0:02:26]} Kf8 {[%emt 0:01:23]} 32. Rd5 {[%emt 0:02:37]} cxb4 {[%emt 0:02:40]} 33. axb4 {[%emt 0:00:12]} Ke7 {[%emt 0:00:29]} 34. Rd2 {[%emt 0:02:51]} Rd6 {[%emt 0:00:40]} 35. Rxd6 {[%emt 0:00:47]} Kxd6 {[%emt 0:00:02]} 36. Ne1 {[%emt 0:01:03]} Bd4 {[%emt 0:02:37]} 37. Nd3 {[%emt 0:00:31]} Kc6 {[%emt 0:00:23]} 38. f3 {[%emt 0:00:40]} f6 {[%emt 0:00:37]} 39. Nf4 {[%emt 0:00:47]} g5 {[%emt 0:00:20]} 40. Nd5 {[%emt 0:00:00]} h5 {[%emt 0:00:00]} 41. g4 {[%emt 0:10:57]} hxg4 {[%emt 0:12:57]} 42. hxg4 {[%emt 0:00:06]} Kd6 {[%emt 0:16:41]} 43. Kc2 {[%emt 0:01:37]} Ke5 {[%emt 0:01:27]} 44. Kd3 {[%emt 0:00:26]} Bf2 {[%emt 0:00:39]} 45. Ke2 {[%emt 0:03:39]} Bg1 {[%emt 0:00:59]} 46. Kd3 {[%emt 0:02:10]} Bf2 {[%emt 0:00:17]} 47. Ke2 {[%emt 0:08:08]} Bg1 {[%emt 0:00:21]} 48. Kd3 {[%emt 0:00:25]} Bf2 {[%emt 0:00:00]} 1/2-1/2

[Event "Reykjavik Open 2022"]
[Site "Reykjavik"]
[Date "2022.04.07"]
[Round "3.35"]
[White "Kartsev, Nikolay"]
[Black "Soham Das"]
[Result "0-1"]
[ECO "B11"]
[WhiteElo "2036"]
[BlackElo "2330"]
[Annotator "TA"]
[PlyCount "166"]
[EventDate "2022.04.06"]
[EventCountry "ISL"]
[SourceTitle "playchess.com"]
[Source "ChessBase"]
[SourceQuality "1"]
[TimeControl "40/5400+30:1800+30"]

{[%evp 117,166,-5362,-5362,-5355,-5297,-5193,-5193,-5160,-5162,-5051,-4774,-3647,-3416,-3056,-2595,-2527,-1805,-1341,-1284,-4026,-4513,-3054,-2684,-2211,-2188,-1012,-513,-2337,-2087,-29976,-29977,-29977,-29978,-29979,-29980,-29980,-7714,-7937,-8509,-29980,-29978,-29978,-29978,-29973,-29974,-29986,-29987,-29989,-29990,-29990,-29991]} 1. e4 {[%emt 0:00:49]} c6 {[%emt 0:03:16]} 2. Nc3 {[%emt 0:01:23]} d5 {[%emt 0:00:06]} 3. Nf3 {[%emt 0:00:08]} Bg4 {[%emt 0:00:47]} 4. Be2 {[%emt 0:00:06]} dxe4 {[%emt 0:04:57]} 5. Nxe4 {[%emt 0:02:12]} Nf6 {[%emt 0:00:04]} 6. Nxf6+ {[%emt 0:00:33]} exf6 {[%emt 0:00:04]} 7. h3 {[%emt 0:00:19]} Be6 {[%emt 0:00:22]} 8. d4 {[%emt 0:01:25]} Bd6 {[%emt 0:00:08]} 9. O-O {[%emt 0:01:39]} O-O {[%emt 0:00:10]} 10. Be3 {[%emt 0:01:21]} Re8 {[%emt 0:00:23]} 11. Re1 {[%emt 0:03:01]} Nd7 {[%emt 0:02:55]} 12. c4 {[%emt 0:00:58]} Nf8 {[%emt 0:00:39]} 13. Qa4 {[%emt 0:08:48]} Qd7 {[%emt 0:08:05]} 14. d5 {[%emt 0:08:10]} cxd5 {[%emt 0:05:34]} 15. Qxd7 {[%emt 0:00:09]} Bxd7 {[%emt 0:01:09]} 16. cxd5 {[%emt 0:10:40]} Ng6 {[%emt 0:05:55]} 17. Nd4 {[%emt 0:03:41]} Be5 {[%emt 0:12:37]} 18. Red1 {[%emt 0:09:16]} a6 {[%emt 0:05:52]} 19. Bg4 {[%emt 0:08:06]} Rad8 {[%emt 0:10:00]} 20. Nb3 {[%emt 0:04:42]} Bxg4 {[%emt 0:16:09]} 21. hxg4 {[%emt 0:00:03]} Bxb2 {[%emt 0:00:43]} 22. Rab1 {[%emt 0:00:25]} Ba3 {[%emt 0:00:09]} 23. Bc5 {[%emt 0:01:17]} Bxc5 {[%emt 0:00:14]} 24. Nxc5 {[%emt 0:00:06]} Nf4 {[%emt 0:16:21]} 25. Rxb7 {[%emt 0:06:18]} Ne2+ {[%emt 0:02:04]} 26. Kh2 {[%emt 0:01:08]} Nc3 {[%emt 0:01:26]} 27. Rd3 {[%emt 0:01:53]} Nxd5 {[%emt 0:01:32]} 28. Nxa6 {[%emt 0:01:17]} Ra8 {[%emt 0:01:03]} 29. Nc5 {[%emt 0:02:07]} Nf4 {[%emt 0:01:19]} 30. Rdd7 {[%emt 0:00:12]} Rec8 {[%emt 0:00:33]} 31. Ne4 {[%emt 0:04:33]} Rcb8 {[%emt 0:00:52]} 32. Rxb8+ {[%emt 0:07:02]} Rxb8 {[%emt 0:00:03]} 33. a4 {[%emt 0:01:30]} Ra8 {[%emt 0:00:49]} 34. a5 {[%emt 0:04:45]} h6 {[%emt 0:00:37]} 35. g3 {[%emt 0:03:50]} Ng6 {[%emt 0:00:17]} 36. Rd5 {[%emt 0:00:38]} Ne5 {[%emt 0:00:03]} 37. Nd6 {[%emt 0:02:07]} Nxg4+ {[%emt 0:00:29]} 38. Kg2 {[%emt 0:00:10]} Ne5 {[%emt 0:00:41]} 39. Nb7 {[%emt 0:01:23]} Ra7 {[%emt 0:00:54]} 40. f4 {[%emt 0:00:00]} Nc4 {[%emt 0:00:00]} 41. Rc5 {[%emt 0:04:35]} Rxb7 {[%emt 0:16:21]} 42. Rxc4 {[%emt 0:00:01]} Rb2+ {[%emt 0:00:14]} 43. Kf3 {[%emt 0:00:25]} Ra2 {[%emt 0:00:16]} 44. Rc5 {[%emt 0:07:43]} Ra3+ {[%emt 0:00:35]} 45. Kg4 {[%emt 0:01:36]} g6 {[%emt 0:04:05]} 46. Rb5 {[%emt 0:04:10]} Kg7 {[%emt 0:00:06]} 47. Kh4 {[%emt 0:03:00]} g5+ {[%emt 0:01:01]} 48. Kg4 {[%emt 0:01:10]} Kg6 {[%emt 0:00:39]} 49. f5+ {[%emt 0:05:31]} Kg7 {[%emt 0:00:07]} 50. Rc5 {[%emt 0:00:04]} Ra4+ {[%emt 0:02:38]} 51. Kh5 {[%emt 0:01:21]} Ra1 {[%emt 0:02:36]} 52. Rc3 {[%emt 0:05:11]} Rh1+ {[%emt 0:00:53]} 53. Kg4 {[%emt 0:00:05]} h5+ {[%emt 0:00:04]} 54. Kf3 {[%emt 0:00:17]} Ra1 {[%emt 0:00:09]} 55. Rc5 {[%emt 0:00:24]} Ra3+ {[%emt 0:00:20]} 56. Kf2 {[%emt 0:01:09]} g4 {[%emt 0:01:55]} 57. Rb5 {[%emt 0:02:12]} Kh6 {[%emt 0:00:06]} 58. Rb7 {[%emt 0:01:32]} Rxa5 {[%emt 0:01:17]} 59. Rxf7 {[%emt 0:00:01]} Kg5 {[%emt 0:00:56]} 60. Rh7 {[%emt 0:00:35]} Rxf5+ {[%emt 0:01:19]} 61. Kg2 {[%emt 0:00:06]} Rc5 {[%emt 0:00:33]} 62. Rh8 {[%emt 0:00:06]} Rc2+ {[%emt 0:00:27]} 63. Kg1 {[%emt 0:00:06]} Rc7 {[%emt 0:01:41]} 64. Kf2 {[%emt 0:00:23]} Re7 {[%emt 0:00:47]} 65. Rg8+ {[%emt 0:01:13]} Kf5 {[%emt 0:00:07]} 66. Rh8 {[%emt 0:00:03] [#]} Kg6 $1 {[%emt 0:00:05]} 67. Rg8+ {[%emt 0:00:09]} Rg7 {[%emt 0:00:09]} 68. Rh8 {[%emt 0:00:04]} Rh7 {[%emt 0:01:04]} 69. Ra8 {[%emt 0:00:25]} Kg5 {[%emt 0:00:53]} 70. Rg8+ {[%emt 0:01:35]} Kf5 {[%emt 0:00:08]} 71. Ra8 {[%emt 0:00:06]} Rb7 {[%emt 0:01:07]} 72. Rh8 {[%emt 0:00:09]} (72. Kg2 $142 Kg6 73. Rg8+ Rg7 74. Rd8) 72... Rb2+ $19 {[%emt 0:01:00]} 73. Kg1 {[%emt 0:01:26]} Ke4 {[%emt 0:00:30]} 74. Rxh5 {[%emt 0:01:06]} Kf3 {[%emt 0:00:03]} 75. Rf5+ {[%emt 0:00:18]} Kxg3 {[%emt 0:00:05]} 76. Kf1 {[%emt 0:00:04]} Rb1+ {[%emt 0:00:53]} (76... Rb3 $142 77. Ra5 f5 78. Ra2 f4 79. Rg2+ Kh3 80. Rd2 f3 81. Rd8 Kg3 82. Rd1 Rb2 83. Ke1 Kg2 84. Rd2+ f2+ 85. Kd1 Rxd2+ 86. Kxd2 f1=Q 87. Kc2 Qc4+ 88. Kb1 g3 89. Ka1 Kf2 90. Kb1 g2 91. Ka1 g1=Q+ 92. Kb2 Qgc1#) 77. Ke2 $19 {[%emt 0:00:04]} Rb6 {[%emt 0:00:05]} 78. Kf1 {[%emt 0:00:38]} Re6 {[%emt 0:00:09]} 79. Rf2 {[%emt 0:00:22]} Kh3 {[%emt 0:00:34]} 80. Rf5 {[%emt 0:00:28]} g3 {[%emt 0:00:08]} 81. Rf4 {[%emt 0:00:32]} Ra6 {[%emt 0:01:14]} 82. Ke2 {[%emt 0:01:26]} g2 {[%emt 0:00:11]} 83. Rf3+ {[%emt 0:01:04]} Kh2 {[%emt 0:00:30]} 0-1

[Event "Reykjavik Open 2022"]
[Site "Reykjavik"]
[Date "2022.04.07"]
[Round "3.36"]
[White "Ritzka, Simon"]
[Black "De Wachter, Matthias"]
[Result "0-1"]
[ECO "B13"]
[WhiteElo "2038"]
[BlackElo "2322"]
[Annotator "TA"]
[PlyCount "36"]
[EventDate "2022.04.06"]
[EventCountry "ISL"]
[SourceTitle "playchess.com"]
[Source "ChessBase"]
[SourceQuality "1"]
[TimeControl "40/5400+30:1800+30"]

{[%evp 11,36,13,28,12,8,9,14,-366,-363,-385,72,-382,-373,-449,-452,-435,-427,-421,-396,-550,-520,-685,-675,-1392,-1341,-1306,-1260]} 1. e4 {[%emt 0:00:01]} c6 {[%emt 0:00:13]} 2. d4 {[%emt 0:00:09]} d5 {[%emt 0:00:11]} 3. exd5 {[%emt 0:00:04]} cxd5 {[%emt 0:00:10]} 4. Bd3 {[%emt 0:00:05]} Nf6 {[%emt 0:01:18]} 5. c3 {[%emt 0:01:41]} Bg4 {[%emt 0:03:40]} 6. Qb3 {[%emt 0:00:10]} Qc7 {[%emt 0:00:16]} 7. Ne2 {[%emt 0:02:13] B13: Caro-Kann: Exchange Variation and Panov-Botvinnik Attack.} (7. h3 $5 {[%cal Rh3g4]} Bd7 8. Ne2 $11) 7... Bxe2 {[%emt 0:01:07]} 8. Bxe2 {[%emt 0:00:07][%cal Oc1f4]} e6 {[%emt 0:00:44]} 9. Bf4 $2 {[%emt 0:20:43][%mdl 8192]} Qxf4 $19 {[%emt 0:39:24]} 10. Qxb7 {[%emt 0:00:39] [#] And now 0-0 would win.} Qc1+ $1 {[%emt 0:00:13]} 11. Bd1 {[%emt 0:00:06] [#] Strongly threatening 0-0.} Bd6 $146 {[%emt 0:00:15][%cal Oe8g8][%mdl 512]} ({Predecessor:} 11... Nfd7 12. O-O Bd6 13. g3 h5 14. Ba4 Qh6 15. h4 g5 16. Nd2 gxh4 17. Nf3 hxg3 {0-1 (27) Salamon,W (2133)-Allram,S (1972) Austria 2013}) 12. Qc8+ {[%emt 0:13:00]} (12. O-O O-O) 12... Ke7 {[%emt 0:00:12]} 13. Qxh8 {[%emt 0:00:04]} Qxb2 {[%emt 0:04:28]} 14. Qc8 {[%emt 0:00:28][%cal Oe1g1]} Qxa1 {[%emt 0:00:29] Active counter play!} 15. Nd2 {[%emt 0:35:29]} Qb2 {[%emt 0:05:12] Prevents Qb7+. Black is clearly winning.} 16. Nb3 {[%emt 0:00:56] [#]} Nbd7 $1 {[%emt 0:01:03][%mdl 512]} 17. Qxa8 {[%emt 0:04:47]} (17. Qa6 Qxc3+) 17... Qxc3+ {[%emt 0:00:09]} 18. Nd2 {[%emt 0:03:46]} Ne4 {[%emt 0:00:28] Weighted Error Value: White=1.52/Black=0.02 (flawless)} 0-1

[Event "Reykjavik Open 2022"]
[Site "Reykjavik"]
[Date "2022.04.07"]
[Round "3.37"]
[White "Large, Peter G"]
[Black "Steiner, Juraj"]
[Result "0-1"]
[ECO "C01"]
[WhiteElo "2335"]
[BlackElo "2027"]
[Annotator "TA"]
[PlyCount "74"]
[EventDate "2022.04.06"]
[EventCountry "ISL"]
[SourceTitle "playchess.com"]
[Source "ChessBase"]
[SourceQuality "1"]
[TimeControl "40/5400+30:1800+30"]

{[%evp 30,74,0,0,11,0,0,-18,0,-8,0,0,0,0,0,0,0,0,0,0,0,-23,-30,-22,-12,-80,-85,-243,-229,-246,-225,-229,-213,-482,-475,-403,-433,-1049,-981,-1863,-889,-3560,-2747,-5909,-5193,-1774,-1383]} 1. e4 {[%emt 0:00:30]} e6 {[%emt 0:03:21]} 2. d4 {[%emt 0:02:16]} d5 {[%emt 0:00:08]} 3. Nc3 {[%emt 0:00:12]} Bb4 {[%emt 0:00:15]} 4. exd5 {[%emt 0:00:57]} exd5 {[%emt 0:00:40]} 5. Bd3 {[%emt 0:00:08]} Nf6 {[%emt 0:01:28]} 6. a3 {[%emt 0:01:01]} Bxc3+ {[%emt 0:02:11]} 7. bxc3 {[%emt 0:00:09]} Bg4 {[%emt 0:00:16]} 8. Ne2 {[%emt 0:02:48]} O-O {[%emt 0:00:48]} 9. O-O {[%emt 0:00:51]} Nbd7 {[%emt 0:00:44]} 10. Rb1 {[%emt 0:01:21]} Nb6 {[%emt 0:15:44]} 11. f3 {[%emt 0:04:53]} Bh5 {[%emt 0:01:32]} 12. Nf4 {[%emt 0:00:32]} Bg6 {[%emt 0:00:34]} 13. Nxg6 {[%emt 0:00:10]} fxg6 {[%emt 0:01:44]} 14. Bf4 {[%emt 0:20:32]} Ne8 {[%emt 0:22:46]} 15. Qc1 {[%emt 0:05:07]} Nd6 {[%emt 0:01:07]} 16. Re1 {[%emt 0:06:01]} Qd7 {[%emt 0:01:35]} 17. Be5 {[%emt 0:04:25]} Rae8 {[%emt 0:06:16]} 18. Qg5 {[%emt 0:05:13]} c6 {[%emt 0:05:36]} 19. h4 {[%emt 0:05:16]} Nbc4 {[%emt 0:11:11]} 20. Bxd6 {[%emt 0:17:21]} Nxd6 {[%emt 0:02:59]} 21. h5 {[%emt 0:04:01]} gxh5 {[%emt 0:01:13]} 22. Qxh5 {[%emt 0:00:26]} g6 {[%emt 0:00:21]} 23. Qg5 {[%emt 0:12:03]} Rxe1+ {[%emt 0:07:39]} 24. Rxe1 {[%emt 0:00:07]} Re8 {[%emt 0:00:21]} 25. Kf2 {[%emt 0:02:42]} Rxe1 {[%emt 0:03:40]} 26. Kxe1 {[%emt 0:00:03]} b5 {[%emt 0:00:56]} 27. Qf6 {[%emt 0:02:56] [#]} (27. Kd1 $11) 27... Nf7 $1 $17 {[%emt 0:01:18]} 28. Kf2 $2 {[%emt 0:01:30] [#]} (28. Qf4 $17) 28... Qd6 $1 $19 {[%emt 0:02:36]} 29. Qxd6 {[%emt 0:00:03]} Nxd6 {[%emt 0:00:15]} 30. Ke3 {[%emt 0:00:10]} Kf7 {[%emt 0:00:13]} 31. g4 $2 {[%emt 0:00:12]} (31. Be2 {is a better defense.}) 31... h5 {[%emt 0:01:20]} 32. Kf4 {[%emt 0:00:59]} Kf6 {[%emt 0:01:49]} 33. g5+ {[%emt 0:00:54]} (33. Kg3 $142 Kg5 34. f4+ Kf6 35. f5 gxf5 36. gxh5) 33... Kg7 $19 {[%emt 0:01:01]} 34. Bf1 {[%emt 0:00:36]} a5 {[%emt 0:01:27]} (34... Nc4 $142 35. Bxc4 bxc4) 35. Bh3 {[%emt 0:00:55]} Nc4 {[%emt 0:00:57]} 36. Bd7 {[%emt 0:00:20]} Nxa3 {[%emt 0:00:01]} 37. Bxc6 {[%emt 0:01:20]} a4 {[%emt 0:00:59]} 0-1

[Event "Reykjavik Open 2022"]
[Site "Reykjavik"]
[Date "2022.04.07"]
[Round "3.38"]
[White "Jaivardhan Raj"]
[Black "Berdnyk, Mariia"]
[Result "0-1"]
[ECO "B06"]
[WhiteElo "2006"]
[BlackElo "2287"]
[Annotator "TA"]
[PlyCount "100"]
[EventDate "2022.04.06"]
[EventCountry "ISL"]
[SourceTitle "playchess.com"]
[Source "ChessBase"]
[SourceQuality "1"]
[TimeControl "40/5400+30:1800+30"]

{[%evp 41,99,-101,-98,-95,-91,-110,-104,-137,-70,-129,-130,-129,-111,-147,-135,-157,-150,-227,-200,-183,-177,-220,-220,-201,-201,-216,-189,-302,-284,-447,-436,-669,-584,-957,-950,-919,-918,-29981,-29982,-29976,-29976,-29989,-29990,-29990,-29991,-29991,-29992,-29992,-29993,-29993,-29994,-29994,-29995,-29995,-29989,-29989,-6279,-29998,-29999,-29999]} 1. e4 {[%emt 0:00:02]} g6 {[%emt 0:00:12]} 2. d4 {[%emt 0:00:09]} Bg7 {[%emt 0:00:07]} 3. Nf3 {[%emt 0:00:09]} d6 {[%emt 0:00:20]} 4. Nc3 {[%emt 0:00:08]} a6 {[%emt 0:00:04]} 5. Bf4 {[%emt 0:00:59]} Nd7 {[%emt 0:05:48]} 6. Qd2 {[%emt 0:00:41]} b5 {[%emt 0:00:36]} 7. e5 {[%emt 0:05:45]} Bb7 {[%emt 0:02:57]} 8. Be2 {[%emt 0:02:16]} Nb6 {[%emt 0:03:54]} 9. exd6 {[%emt 0:01:45]} cxd6 {[%emt 0:00:29]} 10. a3 {[%emt 0:10:40]} Rc8 {[%emt 0:02:38]} 11. Rd1 {[%emt 0:09:39]} Nc4 {[%emt 0:07:47]} 12. Bxc4 {[%emt 0:00:33]} Rxc4 {[%emt 0:00:04]} 13. Be3 {[%emt 0:00:25]} Bxf3 {[%emt 0:05:42]} 14. gxf3 {[%emt 0:00:08]} Qa8 {[%emt 0:01:03]} 15. Ke2 {[%emt 0:03:29]} Qc8 {[%emt 0:04:06]} 16. h4 {[%emt 0:06:02]} h5 {[%emt 0:04:20]} 17. Qd3 {[%emt 0:07:43]} Nh6 {[%emt 0:04:25]} 18. Bxh6 {[%emt 0:02:47]} Bxh6 {[%emt 0:00:41]} 19. Kf1 {[%emt 0:03:29]} Bg7 {[%emt 0:07:24]} 20. Qe3 {[%emt 0:01:10]} Qb7 {[%emt 0:04:24]} 21. Ne4 {[%emt 0:02:04]} O-O {[%emt 0:00:45]} 22. c3 {[%emt 0:00:34]} a5 {[%emt 0:00:39]} 23. Rg1 {[%emt 0:03:57]} Qd7 {[%emt 0:07:24]} 24. Rg3 {[%emt 0:07:54]} Ra8 {[%emt 0:03:43]} (24... b4 $17 25. axb4 axb4) 25. Nd2 {[%emt 0:01:22]} ({White should play} 25. Qd3 $15) 25... Rcc8 $17 {[%emt 0:00:44]} 26. Re1 {[%emt 0:02:41]} Ra7 {[%emt 0:01:13]} 27. Ne4 {[%emt 0:03:01]} b4 {[%emt 0:00:27]} 28. axb4 {[%emt 0:01:55]} axb4 {[%emt 0:00:04]} 29. Qd3 {[%emt 0:00:43]} (29. Ng5 $17) 29... bxc3 {[%emt 0:01:20]} 30. bxc3 {[%emt 0:00:39]} Ra3 {[%emt 0:00:43]} 31. Rc1 {[%emt 0:02:02]} d5 {[%emt 0:02:05]} 32. Nc5 {[%emt 0:00:59]} Qd6 {[%emt 0:00:15]} 33. Qd2 {[%emt 0:02:42]} Kh7 {[%emt 0:02:33]} 34. Qb2 {[%emt 0:01:14]} (34. Re1 {is a better defense.}) 34... Rca8 $19 {[%emt 0:00:16]} 35. Qb7 {[%emt 0:01:33]} (35. Qe2 $142) 35... R8a7 $19 {[%emt 0:04:44]} 36. Qc8 {[%emt 0:01:11]} (36. Qb5 $142 e5 37. Nb3) 36... Qf4 {[%emt 0:01:17]} 37. Nd3 {[%emt 0:02:24]} Qd2 {[%emt 0:00:48]} 38. f4 {[%emt 0:00:44]} Ra1 {[%emt 0:00:03]} ({Weaker is} 38... Ra2 39. f5 $17) 39. Re1 {[%emt 0:04:16]} Rxe1+ {[%emt 0:00:29]} 40. Nxe1 {[%emt 0:00:00]} Ra2 {[%emt 0:00:00]} 41. Nd3 {[%emt 0:10:53]} Ra1+ {[%emt 0:00:22]} 42. Kg2 {[%emt 0:00:30]} Qd1 {[%emt 0:00:03]} 43. Qh3 {[%emt 0:02:29]} Qf1+ {[%emt 0:00:19]} 44. Kf3 {[%emt 0:00:05]} Qxd3+ {[%emt 0:00:04]} 45. Kg2 {[%emt 0:00:09]} Qf1+ {[%emt 0:00:50]} 46. Kf3 {[%emt 0:00:06]} Qd1+ {[%emt 0:01:55]} 47. Kg2 {[%emt 0:00:12]} Rc1 {[%emt 0:00:35]} 48. Re3 {[%emt 0:01:06]} e6 {[%emt 0:00:22]} (48... Qg1+ $142 49. Kf3 Rc2 50. Re2 Rxc3+ 51. Re3 Bxd4 52. Qg3 Qd1+ 53. Kg2 Rc1 54. Qxg6+ fxg6 55. Rxe7+ Kh6 56. Rh7+ Kxh7 57. Kg3 Qg4+ 58. Kh2 Bxf2 59. f5 Qg3#) 49. Rg3 {[%emt 0:01:56]} Qf1+ {[%emt 0:00:04]} 50. Kf3 {[%emt 0:00:08]} Rxc3# {[%emt 0:00:03]} 0-1

[Event "Reykjavik Open 2022"]
[Site "Reykjavik"]
[Date "2022.04.07"]
[Round "3.39"]
[White "Burlacu, Bogdan"]
[Black "Moerman, Thomas"]
[Result "1-0"]
[ECO "C07"]
[WhiteElo "2294"]
[BlackElo "2010"]
[Annotator "TA"]
[PlyCount "69"]
[EventDate "2022.04.06"]
[EventCountry "ISL"]
[SourceTitle "playchess.com"]
[Source "ChessBase"]
[SourceQuality "1"]
[TimeControl "40/5400+30:1800+30"]

{[%evp 26,69,7,0,31,14,79,73,76,75,72,75,63,58,446,190,658,670,739,360,308,280,938,200,204,198,426,154,165,155,169,170,179,181,176,177,154,159,195,197,206,188,242,225,872,535]} 1. e4 {[%emt 0:00:05]} e6 {[%emt 0:00:22]} 2. d4 {[%emt 0:02:45]} d5 {[%emt 0:00:05]} 3. Nd2 {[%emt 0:00:30]} c5 {[%emt 0:00:26]} 4. exd5 {[%emt 0:04:09]} Qxd5 {[%emt 0:00:53]} 5. dxc5 {[%emt 0:00:12]} Bxc5 {[%emt 0:01:46]} 6. Ngf3 {[%emt 0:00:12]} Nf6 {[%emt 0:00:56]} 7. Bc4 {[%emt 0:01:26]} Qc6 {[%emt 0:03:48]} 8. Qe2 {[%emt 0:04:29]} O-O {[%emt 0:01:08]} 9. O-O {[%emt 0:00:08]} Nbd7 {[%emt 0:01:01]} 10. Nb3 {[%emt 0:04:25]} b6 {[%emt 0:05:57]} 11. Nxc5 {[%emt 0:08:16]} Qxc5 {[%emt 0:02:28]} 12. Bf4 {[%emt 0:09:19]} Bb7 {[%emt 0:04:05]} 13. Rfd1 {[%emt 0:16:14]} Qf5 {[%emt 0:10:26]} 14. Bg3 {[%emt 0:02:52]} Rac8 {[%emt 0:08:29]} 15. c3 {[%emt 0:05:12]} e5 {[%emt 0:09:13]} (15... Bxf3 $11 {remains equal.} 16. gxf3 Rc5) 16. Nh4 {[%emt 0:08:45]} (16. Nxe5 Nxe5 17. Bxe5 Rxc4 $1 {[%mdl 512]} 18. Qxc4 Qxe5 $17) 16... Qg5 {[%emt 0:01:54]} 17. Bb5 {[%emt 0:04:29]} Rcd8 {[%emt 0:15:45]} 18. a4 {[%emt 0:09:28]} e4 {[%emt 0:02:24]} 19. Qe3 {[%emt 0:06:57]} Qg4 $2 {[%emt 0:03:43][%mdl 8192]} (19... Qxe3 $14 20. fxe3 a6) 20. h3 {[%emt 0:04:00]} (20. Be2 $142 Qe6 21. Rd6) 20... Qe6 $2 {[%emt 0:01:28]} (20... Qh5 21. Rd6 Nd5 22. Qxe4 Nc5) 21. Rd6 $18 {[%emt 0:00:18]} Qb3 {[%emt 0:03:39]} 22. Rad1 {[%emt 0:01:08]} (22. Nf5 $142) 22... Bd5 $18 {[%emt 0:03:16]} 23. Rd2 {[%emt 0:02:05]} a6 $2 {[%emt 0:00:28]} (23... Be6 24. Be5 Rde8) 24. Be2 $2 {[%emt 0:01:35]} (24. Bxd7 Rxd7 25. Nf5) 24... Be6 $18 {[%emt 0:03:57]} 25. Qd4 {[%emt 0:01:22]} (25. Bxa6 $6 Qxa4 26. Bb7 Qa7 $16) 25... Ra8 $2 {[%emt 0:00:55] [#]} (25... Ne8 {keeps fighting.}) 26. Bd1 $2 {[%emt 0:01:19]} (26. Nf5 $1 $18 {[%cal Rf5g7][%mdl 512] and the rest is easy.}) 26... Qa2 {[%emt 0:00:09]} 27. Bg4 {[%emt 0:00:19]} Nxg4 {[%emt 0:08:05]} 28. hxg4 {[%emt 0:00:05]} Nc5 {[%emt 0:01:42]} 29. b4 {[%emt 0:01:44]} ({Inferior is} 29. Rxb6 Nb3 30. Rxb3 Qxb3 $15) 29... Nb3 {[%emt 0:00:04]} 30. Rxa2 {[%emt 0:00:07]} Nxd4 {[%emt 0:00:07]} 31. Rb2 {[%emt 0:00:12]} Nb3 {[%emt 0:01:20] [#]} 32. Nf5 $1 {[%emt 0:01:05]} ({Don't do} 32. Rxb6 $6 Rfd8 $16) 32... Nc1 {[%emt 0:03:21]} 33. Rxb6 {[%emt 0:00:32]} Nd3 {[%emt 0:00:05]} (33... Rfd8 {is a better defense.} 34. Bd6 Bc4) 34. Re2 $18 {[%emt 0:00:15]} Bd5 $2 {[%emt 0:01:16]} (34... h5 35. Ne7+ Kh7 36. gxh5 (36. Rxe4 hxg4 37. a5 Rfe8 $18) 36... Rfe8) 35. Ne7+ {[%emt 0:00:07]} 1-0